fUST/lending_fUST_20250128
["ID","MTS","AMOUNT","RATE_DAILY","PERIOD"]
[350693793,1738065038878,-3141.31,0.00016438,2]
[350693795,1738065038887,-713.33,0.00016438,2]
[350693796,1738065038897,-500.0,0.00016438,2]
[350693798,1738065038907,-500.0,0.00016438,2]
[350693800,1738065038916,-645.28,0.00016438,2]
[350693802,1738065038925,-695.76,0.00016438,2]
[350693804,1738065038934,-504.15702475,0.00016438,2]
[350693806,1738065038944,-500.0,0.00016438,2]
[350693808,1738065038953,-500.0,0.00016438,2]
[350693810,1738065038963,-592.36,0.00016438,2]
[350693811,1738065038973,-500.0,0.00016438,2]
[350693813,1738065038982,-497.2556,0.00016438,2]
[350693815,1738065038991,-500.0,0.00016438,2]
[350693817,1738065039002,-500.0,0.00016438,2]
[350693819,1738065039011,-500.0,0.00016438,2]
[350693821,1738065039020,-500.0,0.00016438,2]
[350693823,1738065039029,-11684.0,0.00016438,2]
[350693824,1738065039037,-500.0,0.00016438,2]
[350693826,1738065039046,-500.0,0.00016438,2]
[350693828,1738065039055,-500.0,0.00016438,2]
[350693830,1738065039064,-500.0,0.00016438,2]
[350693832,1738065039074,-500.0,0.00016438,2]
[350693834,1738065039082,-734.76,0.00016438,2]
[350693835,1738065039091,-1395.99,0.00016438,2]
[350693837,1738065039100,-500.0,0.00016438,2]
[350693839,1738065039110,-500.0,0.00016438,2]
[350693841,1738065039119,-500.0,0.00016438,2]
[350693843,1738065039128,-500.0,0.00016438,2]
[350693845,1738065039137,-584.35,0.00016438,2]
[350693847,1738065039147,-500.0,0.00016438,2]
[350693849,1738065039156,-500.0,0.00016438,2]
[350693851,1738065039165,-500.0,0.00016438,2]
[350693852,1738065039175,-4863.57,0.00016438,2]
[350693853,1738065039184,-258.20958028,0.00016438,2]
[350693854,1738065039194,-658.48,0.00016438,2]
[350693855,1738065039203,-500.0,0.00016438,2]
[350693856,1738065039213,-500.0,0.00016438,2]
[350693857,1738065039226,-500.0,0.00016438,2]
[350693858,1738065039235,-775.91,0.00016438,2]
[350693859,1738065039244,-500.0,0.00016438,2]
[350693860,1738065039254,-500.0,0.00016438,2]
[350693861,1738065039263,-500.0,0.00016438,2]
[350693862,1738065039273,-392.02,0.00016438,2]
[350693863,1738065039283,-500.0,0.00016438,2]
[350693864,1738065039293,-500.0,0.00016438,2]
[350693865,1738065039302,-500.0,0.00016438,2]
[350693866,1738065039312,-500.0,0.00016438,2]
[350693867,1738065039322,-500.0,0.00016438,2]
[350693868,1738065039332,-500.0,0.00016438,2]
[350693869,1738065039341,-500.0,0.00016438,2]
[350693870,1738065039351,-500.0,0.00016438,2]
[350693871,1738065039360,-614.42271564,0.00016438,2]
[350693872,1738065039370,-500.0,0.00016438,2]
[350693873,1738065039379,-500.0,0.00016438,2]
[350693874,1738065039389,-500.0,0.00016438,2]
[350693875,1738065039398,-500.0,0.00016438,2]
[350693876,1738065039407,-1973.44,0.00016438,2]
[350693877,1738065039417,-500.0,0.00016438,2]
[350693878,1738065039426,-500.0,0.00016438,2]
[350693879,1738065039436,-500.0,0.00016438,2]
[350693880,1738065039445,-500.0,0.00016438,2]
[350693881,1738065039454,-500.0,0.00016438,2]
[350693883,1738065039464,-500.0,0.00016438,2]
[350693884,1738065039473,-1349.38,0.00016438,2]
[350693885,1738065039482,-500.0,0.00016438,2]
[350693887,1738065039491,-823.77,0.00016438,2]
[350693889,1738065039500,-500.0,0.00016473,2]
[350693891,1738065039510,-500.0,0.00016574,2]
[350693893,1738065039519,-378.51058984,0.00016574,2]
[350693895,1738065039528,-500.0,0.00016575,2]
[350693897,1738065039538,-500.0,0.00016575,2]
[350693899,1738065039547,-500.0,0.00016575,2]
[350693901,1738065039556,-500.0,0.00016575,2]
[350693903,1738065039565,-500.0,0.00016575,2]
[350693906,1738065039574,-500.0,0.00016575,2]
[350693908,1738065039583,-500.0,0.00016575,2]
[350693910,1738065039592,-500.0,0.00016575,2]
[350693912,1738065039601,-500.0,0.00016575,2]
[350693914,1738065039611,-500.0,0.00016575,2]
[350693916,1738065039620,-500.0,0.00016575,2]
[350693918,1738065039629,-500.0,0.00016575,2]
[350693920,1738065039638,-500.0,0.00016575,2]
[350693922,1738065039647,-500.0,0.00016575,2]
[350693924,1738065039656,-500.0,0.00016575,2]
[350693926,1738065039666,-159.00114575,0.00016575,2]
[350693928,1738065039675,-500.0,0.00016575,2]
[350693930,1738065039685,-500.0,0.00016575,2]
[350693932,1738065039697,-500.0,0.00016575,2]
[350693934,1738065039706,-500.0,0.00016575,2]
[350693936,1738065039717,-3141.31,0.00016575,2]
[350693938,1738065039726,-713.33,0.00016575,2]
[350693940,1738065039735,-645.28,0.00016575,2]
[350693942,1738065039744,-695.76,0.00016575,2]
[350693944,1738065039754,-500.0,0.00016575,2]
[350693946,1738065039763,-500.0,0.00016575,2]
[350693948,1738065039772,-500.0,0.00016575,2]
[350693950,1738065039781,-391.42729526,0.00016575,2]
[350693952,1738065039791,-500.0,0.00016575,2]
[350693954,1738065039800,-11684.0,0.00016575,2]
[350693956,1738065039809,-500.0,0.00016575,2]
[350693958,1738065039818,-500.0,0.00016575,2]
[350693960,1738065039827,-500.0,0.00016575,2]
[350693962,1738065039837,-500.0,0.00016575,2]
[350693964,1738065039846,-500.0,0.00016575,2]
[350693966,1738065039855,-734.76,0.00016575,2]
[350693968,1738065039864,-1395.99,0.00016575,2]
[350693970,1738065039873,-500.0,0.00016575,2]
[350693972,1738065039882,-500.0,0.00016575,2]
[350693974,1738065039891,-500.0,0.00016575,2]
[350693976,1738065039900,-500.0,0.00016575,2]
[350693978,1738065039910,-500.0,0.00016575,2]
[350693980,1738065039919,-500.0,0.00016575,2]
[350693982,1738065039928,-4863.57,0.00016575,2]
[350693984,1738065039938,-658.48,0.00016575,2]
[350693986,1738065039947,-500.0,0.00016575,2]
[350693988,1738065039956,-500.0,0.00016575,2]
[350693990,1738065039965,-500.0,0.00016575,2]
[350693992,1738065039974,-775.91,0.00016575,2]
[350693994,1738065039983,-500.0,0.00016575,2]
[350693996,1738065039992,-500.0,0.00016575,2]
[350693998,1738065040002,-500.0,0.00016575,2]
[350694000,1738065040011,-500.0,0.00016575,2]
[350694002,1738065040021,-500.0,0.00016575,2]
[350694004,1738065040030,-500.0,0.00016575,2]
[350694006,1738065040039,-500.0,0.00016575,2]
[350694008,1738065040048,-500.0,0.00016575,2]
[350694010,1738065040057,-152.65551917,0.00016575,2]
[350694012,1738065040066,-542.53193917,0.00016575,2]
[350694014,1738065040076,-500.0,0.00016575,2]
[350694016,1738065040085,-500.0,0.00016575,2]
[350694018,1738065040094,-500.0,0.00016575,2]
[350694020,1738065040103,-1973.44,0.00016575,2]
[350694022,1738065040112,-418.94788333,0.00016575,2]
[350694024,1738065040122,-500.0,0.00016575,2]
[350694026,1738065040131,-500.0,0.00016575,2]
[350694028,1738065040140,-500.0,0.00016575,2]
[350694030,1738065040149,-1349.38,0.00016575,2]
[350694032,1738065040158,-500.0,0.00016575,2]
[350694034,1738065040167,-823.77,0.00016575,2]
[350694036,1738065040177,-151.0,0.00016612,2]
[350694038,1738065040186,-151.0,0.00016612,2]
[350694040,1738065040195,-151.0,0.00016712,2]
[350694042,1738065040204,-500.0,0.00016712,2]
[350694044,1738065040214,-431.08109163,0.00016712,2]
[350694046,1738065040226,-500.0,0.00016712,2]
[350694048,1738065040236,-500.0,0.00016712,2]
[350694050,1738065040245,-500.0,0.00016712,2]
[350694052,1738065040255,-500.0,0.00016712,2]
[350694054,1738065040263,-500.0,0.00016712,2]
[350694056,1738065040273,-500.0,0.00016712,2]
[350694058,1738065040283,-500.0,0.00016712,2]
[350694060,1738065040293,-500.0,0.00016712,2]
[350694062,1738065040303,-500.0,0.00016712,2]
[350694064,1738065040313,-500.0,0.00016712,2]
[350694066,1738065040322,-500.0,0.00016712,2]
[350694068,1738065040331,-500.0,0.00016712,2]
[350694070,1738065040340,-500.0,0.00016712,2]
[350694072,1738065040349,-500.0,0.00016712,2]
[350694074,1738065040359,-3141.31,0.00016712,2]
[350694076,1738065040368,-713.33,0.00016712,2]
[350694078,1738065040377,-645.28,0.00016712,2]
[350694080,1738065040387,-695.76,0.00016712,2]
[350694082,1738065040396,-500.0,0.00016712,2]
[350694084,1738065040406,-500.0,0.00016712,2]
[350694086,1738065040415,-500.0,0.00016712,2]
[350694088,1738065040425,-500.0,0.00016712,2]
[350694090,1738065040434,-11684.0,0.00016712,2]
[350694092,1738065040444,-500.0,0.00016712,2]
[350694094,1738065040454,-500.0,0.00016712,2]
[350694097,1738065040463,-500.0,0.00016712,2]
[350694098,1738065040473,-500.0,0.00016712,2]
[350694101,1738065040483,-500.0,0.00016712,2]
[350694103,1738065040492,-734.76,0.00016712,2]
[350694104,1738065040501,-1395.99,0.00016712,2]
[350694105,1738065040510,-500.0,0.00016712,2]
[350694106,1738065040520,-500.0,0.00016712,2]
[350694107,1738065040529,-535.58,0.00016712,2]
[350694108,1738065040538,-500.0,0.00016712,2]
[350694109,1738065040547,-4863.57,0.00016712,2]
[350694110,1738065040557,-658.48,0.00016712,2]
[350694111,1738065040566,-500.0,0.00016712,2]
[350694112,1738065040578,-500.0,0.00016712,2]
[350694113,1738065040587,-500.0,0.00016712,2]
[350694114,1738065040596,-775.91,0.00016712,2]
[350694115,1738065040606,-500.0,0.00016712,2]
[350694116,1738065040615,-500.0,0.00016712,2]
[350694117,1738065040626,-500.0,0.00016712,2]
[350694118,1738065040635,-500.0,0.00016712,2]
[350694119,1738065040645,-500.0,0.00016712,2]
[350694120,1738065040654,-500.0,0.00016712,2]
[350694121,1738065040664,-425.14,0.00016712,2]
[350694122,1738065040673,-500.0,0.00016712,2]
[350694123,1738065040682,-347.14,0.00016712,2]
[350694124,1738065040692,-500.0,0.00016712,2]
[350694125,1738065040702,-1973.44,0.00016712,2]
[350694126,1738065040711,-500.0,0.00016712,2]
[350694127,1738065040721,-500.0,0.00016712,2]
[350694128,1738065040730,-619.22,0.00016712,2]
[350694129,1738065040739,-1349.38,0.00016712,2]
[350694130,1738065040749,-255.45106936,0.00016712,2]
[350694131,1738065040758,-823.77,0.00016712,2]
[350694132,1738065040768,-155.0,0.00016753,2]
[350694133,1738065040777,-306.23,0.0001679,2]
[350694134,1738065040786,-500.0,0.00016845,2]
[350694136,1738065040796,-500.0,0.00016847,2]
[350694137,1738065040805,-151.0,0.00016849,2]
[350694139,1738065040814,-612.12,0.00016849,2]
[350694140,1738065040824,-500.0,0.00016849,2]
[350694141,1738065040833,-500.0,0.00016849,2]
[350694142,1738065040842,-500.0,0.00016849,2]
[350694143,1738065040851,-500.0,0.00016849,2]
[350694144,1738065040860,-500.0,0.00016849,2]
[350694145,1738065040870,-553.67,0.00016849,2]
[350694146,1738065040965,-500.0,0.00016849,2]
[350694147,1738065040975,-506.18,0.00016849,2]
[350694148,1738065040986,-500.0,0.00016849,2]
[350694149,1738065040995,-500.0,0.00016849,2]
[350694150,1738065041006,-500.0,0.00016849,2]
[350694151,1738065041015,-619.46440541,0.00016849,2]
[350694152,1738065041025,-433.83311,0.00016849,2]
[350694153,1738065041035,-500.0,0.00016849,2]
[350694155,1738065041045,-3141.31,0.00016849,2]
[350694156,1738065041055,-713.33,0.00016849,2]
[350694157,1738065041064,-645.28,0.00016849,2]
[350694159,1738065041073,-695.76,0.00016849,2]
[350694161,1738065041083,-500.0,0.00016849,2]
[350694162,1738065041092,-500.0,0.00016849,2]
[350694164,1738065041101,-500.0,0.00016849,2]
[350694166,1738065041111,-500.0,0.00016849,2]
[350694168,1738065041120,-11684.0,0.00016849,2]
[350694170,1738065041130,-500.0,0.00016849,2]
[350694172,1738065041139,-500.0,0.00016849,2]
[350694174,1738065041149,-500.0,0.00016849,2]
[350694176,1738065041158,-500.0,0.00016849,2]
[350694178,1738065041167,-500.0,0.00016849,2]
[350694180,1738065041176,-734.76,0.00016849,2]
[350694182,1738065041186,-1395.99,0.00016849,2]
[350694184,1738065041196,-500.0,0.00016849,2]
[350694186,1738065041205,-500.0,0.00016849,2]
[350694188,1738065041218,-500.0,0.00016849,2]
[350694190,1738065041227,-4863.57,0.00016849,2]
[350694192,1738065041237,-658.48,0.00016849,2]
[350694194,1738065041246,-500.0,0.00016849,2]
[350694196,1738065041255,-500.0,0.00016849,2]
[350694198,1738065041265,-500.0,0.00016849,2]
[350694200,1738065041274,-775.91,0.00016849,2]
[350694202,1738065041284,-500.0,0.00016849,2]
[350694204,1738065041293,-500.0,0.00016849,2]
[350694206,1738065041303,-500.0,0.00016849,2]
[350694208,1738065041312,-500.0,0.00016849,2]
[350694210,1738065041322,-500.0,0.00016849,2]
[350694212,1738065041332,-500.0,0.00016849,2]
[350694214,1738065041341,-500.0,0.00016849,2]
[350694216,1738065041350,-510.59810283,0.00016849,2]
[350694232,1738065041492,-120.01189717,0.00016849,2]
[350694234,1738065041501,-1140.77420044,0.00016849,2]
[350694236,1738065041514,-832.66579956,0.00016849,2]
[350694238,1738065041523,-500.0,0.00016849,2]
[350694240,1738065041532,-500.0,0.00016849,2]
[350694242,1738065041541,-1349.38,0.00016849,2]
[350694244,1738065041551,-823.77,0.00016849,2]
[350694246,1738065041561,-152.0,0.00016875,2]
[350694248,1738065041571,-500.0,0.00016986,2]
[350694250,1738065041580,-500.0,0.00016986,2]
[350694252,1738065041590,-500.0,0.00016986,2]
[350694255,1738065041599,-500.0,0.00016986,2]
[350694256,1738065041608,-213.19600499,0.00016986,2]
[350694258,1738065041617,-500.0,0.00016986,2]
[350694260,1738065041626,-500.0,0.00016986,2]
[350694262,1738065041635,-500.0,0.00016986,2]
[350694264,1738065041643,-500.0,0.00016986,2]
[350694266,1738065041652,-223.33374177,0.00016986,2]
[350694268,1738065041662,-3141.31,0.00016986,2]
[350694270,1738065041671,-713.33,0.00016986,2]
[350694272,1738065041680,-645.28,0.00016986,2]
[350694274,1738065041690,-695.76,0.00016986,2]
[350694276,1738065041700,-500.0,0.00016986,2]
[350694278,1738065041709,-500.0,0.00016986,2]
[350694280,1738065041718,-500.0,0.00016986,2]
[350694282,1738065041727,-500.0,0.00016986,2]
[350694284,1738065041737,-11684.0,0.00016986,2]
[350694286,1738065041746,-500.0,0.00016986,2]
[350694288,1738065041756,-500.0,0.00016986,2]
[350694290,1738065041766,-500.0,0.00016986,2]
[350694292,1738065041775,-500.0,0.00016986,2]
[350694294,1738065041784,-500.0,0.00016986,2]
[350694296,1738065041794,-734.76,0.00016986,2]
[350694298,1738065041803,-1395.99,0.00016986,2]
[350694300,1738065041812,-500.0,0.00016986,2]
[350694302,1738065041821,-500.0,0.00016986,2]
[350694304,1738065041831,-500.0,0.00016986,2]
[350694306,1738065041840,-4863.57,0.00016986,2]
[350694308,1738065041850,-658.48,0.00016986,2]
[350694310,1738065041860,-500.0,0.00016986,2]
[350694312,1738065041869,-500.0,0.00016986,2]
[350694314,1738065041879,-500.0,0.00016986,2]
[350694316,1738065041888,-775.91,0.00016986,2]
[350694318,1738065041898,-500.0,0.00016986,2]
[350694320,1738065041907,-500.0,0.00016986,2]
[350694322,1738065041917,-500.0,0.00016986,2]
[350694324,1738065041926,-299.83,0.00016986,2]
[350694327,1738065041935,-603.53,0.00016986,2]
[350694329,1738065041946,-500.0,0.00016986,2]
[350694330,1738065041955,-500.0,0.00016986,2]
[350694332,1738065041964,-1973.44,0.00016986,2]
[350694335,1738065041974,-635.97011696,0.00016986,2]
[350694337,1738065041983,-500.0,0.00016986,2]
[350694338,1738065041992,-1349.38,0.00016986,2]
[350694340,1738065042002,-823.77,0.00016986,2]
[350694342,1738065042011,-34566.44313355,0.00017023,2]
[350694533,1738065043864,-1325.37210815,0.00017023,2]
[350694539,1738065043918,-1135.79434697,0.00017023,2]
[350694542,1738065043929,-153.0,0.00017068,2]
[350694544,1738065043939,-497.2184366,0.00017068,2]
[350694546,1738065043949,-154.1572399,0.00017068,2]
[350694548,1738065043958,-267.64828962,0.00017077,2]
[350694550,1738065043969,-500.0,0.00017077,2]
[350694552,1738065043979,-532.35211508,0.00017103,2]
[350694554,1738065043988,-534.42351083,0.00017103,2]
[350694556,1738065043998,-500.0,0.00017123,2]
[350694558,1738065044008,-500.0,0.00017123,2]
[350694560,1738065044017,-383.21,0.00017123,2]
[350694562,1738065044026,-500.0,0.00017123,2]
[350694564,1738065044035,-500.0,0.00017123,2]
[350694566,1738065044045,-500.0,0.00017123,2]
[350694568,1738065044054,-500.0,0.00017123,2]
[350694570,1738065044064,-500.0,0.00017123,2]
[350694572,1738065044073,-3141.31,0.00017123,2]
[350694574,1738065044082,-713.33,0.00017123,2]
[350694576,1738065044091,-645.28,0.00017123,2]
[350694578,1738065044101,-695.76,0.00017123,2]
[350694580,1738065044110,-500.0,0.00017123,2]
[350694582,1738065044120,-500.0,0.00017123,2]
[350694584,1738065044129,-500.0,0.00017123,2]
[350694586,1738065044138,-500.0,0.00017123,2]
[350694588,1738065044148,-11684.0,0.00017123,2]
[350694590,1738065044157,-500.0,0.00017123,2]
[350694592,1738065044166,-500.0,0.00017123,2]
[350694594,1738065044175,-500.0,0.00017123,2]
[350694595,1738065044185,-500.0,0.00017123,2]
[350694597,1738065044194,-500.0,0.00017123,2]
[350694599,1738065044203,-343.91186599,0.00017123,2]
[350694602,1738065044219,-390.84813401,0.00017123,2]
[350694604,1738065044228,-1395.99,0.00017123,2]
[350694606,1738065044237,-409.08630642,0.00017123,2]
[350694827,1738065046343,-90.91369358,0.00017123,2]
[350694829,1738065046353,-500.0,0.00017123,2]
[350694831,1738065046366,-312.39861303,0.00017123,2]
[350694833,1738065046391,-187.60138697,0.00017123,2]
[350694835,1738065046401,-4863.57,0.00017123,2]
[350694837,1738065046410,-658.48,0.00017123,2]
[350694839,1738065046420,-500.0,0.00017123,2]
[350694841,1738065046430,-500.0,0.00017123,2]
[350694843,1738065046439,-500.0,0.00017123,2]
[350694845,1738065046449,-775.91,0.00017123,2]
[350694847,1738065046458,-500.0,0.00017123,2]
[350694849,1738065046467,-500.0,0.00017123,2]
[350694851,1738065046477,-500.0,0.00017123,2]
[350694853,1738065046486,-500.0,0.00017123,2]
[350694855,1738065046495,-500.0,0.00017123,2]
[350694857,1738065046505,-1973.44,0.00017123,2]
[350694859,1738065046515,-500.0,0.00017123,2]
[350694861,1738065046525,-1349.38,0.00017123,2]
[350694863,1738065046534,-823.77,0.00017123,2]
[350694865,1738065046543,-260.271,0.00017174,2]
[350694877,1738065046553,-537.0,0.00017174,2]
[350694879,1738065046649,-2047.0,0.00017174,2]
[350694881,1738065046659,-2303.0,0.00017174,2]
[350694883,1738065046669,-395.0,0.00017174,2]
[350694885,1738065046679,-2000.0,0.000172,2]
[350694887,1738065046688,-2000.0,0.000172,3]
[350694889,1738065046699,-500.8551011,0.00017214,2]
[350694891,1738065046708,-500.0,0.0001726,2]
[350694893,1738065046718,-500.0,0.0001726,2]
[350694895,1738065046728,-500.0,0.0001726,2]
[350694897,1738065046737,-500.0,0.0001726,2]
[350694899,1738065046746,-500.0,0.0001726,2]
[350694901,1738065046755,-500.0,0.0001726,2]
[350694903,1738065046765,-3141.31,0.0001726,2]
[350694905,1738065046774,-713.33,0.0001726,2]
[350694907,1738065046784,-645.28,0.0001726,2]
[350694910,1738065046796,-695.76,0.0001726,2]
[350694912,1738065046805,-500.0,0.0001726,2]
[350694914,1738065046814,-498.02052012,0.0001726,2]
[350694916,1738065046827,-1.97947988,0.0001726,2]
[350694918,1738065046836,-370.97310412,0.0001726,2]
[350694920,1738065046848,-129.02689588,0.0001726,2]
[350694922,1738065046858,-500.0,0.0001726,2]
[350694924,1738065046867,-11684.0,0.0001726,2]
[350694926,1738065046877,-500.0,0.0001726,2]
[350694928,1738065046887,-500.0,0.0001726,2]
[350694930,1738065046897,-500.0,0.0001726,2]
[350694933,1738065046907,-500.0,0.0001726,2]
[350694935,1738065046917,-500.0,0.0001726,2]
[350694937,1738065046927,-734.76,0.0001726,2]
[350694939,1738065046939,-1395.99,0.0001726,2]
[350694941,1738065046949,-500.0,0.0001726,2]
[350694943,1738065046959,-500.0,0.0001726,2]
[350694945,1738065046969,-500.0,0.0001726,2]
[350694947,1738065046980,-4863.57,0.0001726,2]
[350694949,1738065046989,-658.48,0.0001726,2]
[350694951,1738065046999,-500.0,0.0001726,2]
[350694953,1738065047009,-500.0,0.0001726,2]
[350694955,1738065047019,-74.77144385,0.0001726,2]
[350694999,1738065201686,300.0,0.0001515,2]
[350695000,1738065239379,879.51066094,0.0001515,2]
[350695001,1738065334788,282.47048,0.00013973,2]
[350695002,1738065395965,900.0,0.0001515,2]
[350695003,1738065398840,186.12,0.00010959,2]
[350695004,1738065409652,155.1,0.00010959,2]
[350695005,1738065420400,775.52,0.00010959,2]
[350695007,1738066029123,-310.24647697,0.00015312,2]
[350695008,1738066029144,-230.07596383,0.00015412,2]
[350695009,1738066039099,-76.91923117,0.00015412,2]
[350695010,1738066039121,-211.67933087,0.00015412,2]
[350695011,1738066039144,-292.85382108,0.00015637,2]
[350695012,1738066046089,-7.14617892,0.00015637,2]
[350695013,1738066046111,-969.64705209,0.00015638,2]
[350695014,1738066153114,-272.44,0.00015522,2]
[350695015,1738066161222,-34.5551969,0.00015522,2]
[350695016,1738066161244,-300.0,0.00015637,2]
[350695017,1738066161267,-10332.57996286,0.00015638,2]
[350695050,1738066232538,-300.0,0.00015637,2]
[350695051,1738066232548,-1972.936246,0.00015638,2]
[350695052,1738066232559,-412.9675,0.00015638,2]
[350695053,1738066232698,-11211.86923905,0.00015638,2]
[350695054,1738066232709,-220.86609045,0.00016338,2]
[350695055,1738066232720,-160.97879767,0.00016437,2]
[350695056,1738066232730,-500.0,0.00016437,2]
[350695057,1738066232740,-336.80518067,0.00016437,2]
[350695058,1738066232749,-621.47461728,0.00016438,2]
[350695059,1738066232759,-500.0,0.00016438,2]
[350695060,1738066232767,-500.0,0.00016438,2]
[350695061,1738066232777,-500.0,0.00016438,2]
[350695063,1738066232786,-500.0,0.00016438,2]
[350695065,1738066232795,-500.0,0.00016438,2]
[350695067,1738066232804,-500.0,0.00016438,2]
[350695069,1738066232813,-275.54058267,0.00016438,2]
[350695071,1738066232822,-500.0,0.00016438,2]
[350695073,1738066232831,-500.0,0.00016438,2]
[350695075,1738066232840,-526.11,0.00016438,2]
[350695077,1738066232850,-500.0,0.00016438,2]
[350695079,1738066232859,-673.01,0.00016438,2]
[350695081,1738066232869,-464.15549221,0.00016438,2]
[350695083,1738066232881,-35.84450779,0.00016438,2]
[350695085,1738066232890,-189.86469295,0.00016438,2]
[350695087,1738066232900,-528.58,0.00016438,2]
[350695089,1738066232909,-500.0,0.00016438,2]
[350695091,1738066232919,-500.0,0.00016438,2]
[350695092,1738066232929,-500.0,0.00016438,2]
[350695093,1738066232939,-500.0,0.00016438,2]
[350695095,1738066232949,-306.7349167,0.00016438,2]
[350695107,1738066238385,-193.2650833,0.00016438,2]
[350695108,1738066238396,-500.0,0.00016438,2]
[350695109,1738066238407,-132.6099167,0.00016438,2]
[350695110,1738066238597,-491.4200833,0.00016438,2]
[350695111,1738066238607,-27.48912477,0.00016438,2]
[350695112,1738066238655,-472.51087523,0.00016438,2]
[350695113,1738066238666,-198.38651026,0.00016438,2]
[350695114,1738066238686,-301.61348974,0.00016438,2]
[350695115,1738066238698,-31.27151326,0.00016438,2]
[350695116,1738066238713,-516.70848674,0.00016438,2]
[350695117,1738066238724,-346.26604082,0.00016438,2]
[350695119,1738066238737,-7948.65114259,0.00016438,2]
[350695120,1738066238750,-571.57281659,0.00016438,2]
[350695121,1738066238763,-123.60367347,0.00016438,2]
[350695133,1738066240512,-960.67632653,0.00016438,2]
[350695134,1738066240523,-500.0,0.00016438,2]
[350695135,1738066240535,-500.0,0.00016438,2]
[350695136,1738066240547,-500.0,0.00016438,2]
[350695137,1738066240558,-500.0,0.00016438,2]
[350695138,1738066240569,-500.47,0.00016438,2]
[350695139,1738066240580,-500.0,0.00016438,2]
[350695140,1738066240589,-3732.07,0.00016438,2]
[350695141,1738066240600,-500.0,0.00016438,2]
[350695142,1738066240612,-622.74,0.00016438,2]
[350695143,1738066240622,-500.0,0.00016438,2]
[350695144,1738066240633,-500.0,0.00016438,2]
[350695145,1738066240645,-500.0,0.00016438,2]
[350695146,1738066240656,-313.59966481,0.00016438,2]
[350695147,1738066240666,-500.0,0.00016438,2]
[350695148,1738066240677,-500.0,0.00016438,2]
[350695149,1738066240687,-500.0,0.00016438,2]
[350695150,1738066240697,-500.0,0.00016438,2]
[350695151,1738066240708,-226.8,0.00016438,2]
[350695152,1738066240718,-500.0,0.00016438,2]
[350695153,1738066240729,-500.0,0.00016438,2]
[350695154,1738066240739,-500.0,0.00016438,2]
[350695155,1738066240750,-1074.68,0.00016438,2]
[350695156,1738066240760,-2722.22,0.00016438,2]
[350695157,1738066240771,-1588.73,0.00016438,2]
[350695158,1738066240781,-500.0,0.00016438,2]
[350695159,1738066240792,-581.848,0.00016473,2]
[350695160,1738066240802,-500.0,0.00016575,2]
[350695161,1738066240813,-500.0,0.00016575,2]
[350695162,1738066240824,-500.0,0.00016575,2]
[350695163,1738066240834,-500.0,0.00016575,2]
[350695164,1738066240845,-29.87855035,0.00016575,2]
[350695173,1738066243445,-470.12144965,0.00016575,2]
[350695174,1738066243454,-526.11,0.00016575,2]